bitfinex-derivatives/quotes_SOLF0:USTF0_20251002
["timestamp","ask_amount","ask_price","bid_price","bid_amount"]
[1759417108650,1.75297927,223.96,223.86,7.38]
[1759417109043,1.75297927,223.96,223.87,1.75297927]
[1759417109651,3.63,223.95,223.86,7.38]
[1759417110349,1.75297927,223.93,223.86,7.38]
[1759417111557,1.75297927,223.93,223.87,4.0174]
[1759417111753,1.75297927,223.93,223.82,9.04297927]
[1759417112054,1.75297927,223.93,223.85,4.0179]
[1759417112351,1.75297927,223.88,223.82,7.29]
[1759417113059,1.75297927,223.88,223.81,4.0187]
[1759417113250,1.75297927,223.88,223.77,7.29]
[1759417113449,1.75297927,223.88,223.77,9.04297927]
[1759417113650,5.37297927,223.88,223.77,64.27537927]
[1759417113955,5.37297927,223.88,223.78,7.29]
[1759417114455,3.62,223.88,223.78,7.29]
[1759417114657,3.62,223.88,223.81,4.0187]
[1759417115653,3.62,223.88,223.82,4.0183]
[1759417116256,4.0172,223.9,223.82,4.0183]
[1759417117162,4.0174,223.89,223.82,4.0183]
[1759417117761,4.0177,223.87,223.8,4.0188]
[1759417118361,7.09781687,223.87,223.8,4.0188]
[1759417118555,3.08011687,223.87,223.81,4.0185]
[1759417118756,3.08011687,223.91,223.81,7.29]
[1759417119060,3.08011687,223.9,223.81,7.29]
[1759417119261,3.08011687,223.93,223.86,4.0176]
[1759417119460,3.08011687,223.92,223.86,4.0176]
[1759417119661,3.08011687,223.91,223.87,7.29]
[1759417119855,3.08011687,223.9,223.87,7.29]
[1759417120056,3.08011687,223.93,223.87,7.29]
[1759417120353,3.08011687,223.92,223.86,4.0176]
[1759417120661,3.62,223.93,223.86,11.3076]
[1759417120662,3.08011687,223.91,223.86,11.3076]
[1759417120862,3.08011687,223.92,223.86,11.3076]
[1759417121065,3.08011687,223.91,223.86,11.3076]
[1759417121362,3.08011687,223.9,223.86,11.3076]
[1759417121558,3.08011687,223.92,223.86,11.3076]
[1759417121765,3.08011687,223.91,223.86,4.0176]
[1759417121963,3.08011687,223.92,223.86,11.3076]
[1759417122158,3.08011687,223.91,223.86,4.0176]
[1759417122357,3.08011687,223.92,223.88,11.3074]
[1759417122558,3.08011687,223.91,223.88,11.3074]
[1759417122863,3.08011687,223.92,223.9,7.29]
[1759417123161,6.70011687,223.95,223.83,7.29]
[1759417123362,3.08011687,223.94,223.83,7.29]
[1759417123559,3.08011687,223.93,223.83,7.29]
[1759417123759,3.08011687,223.94,223.83,7.29]
[1759417124065,3.08011687,223.93,223.83,7.29]
[1759417124258,3.62,223.95,223.83,7.29]
[1759417124259,3.08011687,223.92,223.83,7.29]
[1759417124457,3.08011687,223.94,223.83,7.29]
[1759417124667,3.08011687,223.93,223.83,7.29]
[1759417124856,3.08011687,223.92,223.83,7.29]
[1759417125164,3.08011687,223.94,223.83,7.29]
[1759417125363,3.08011687,223.93,223.83,7.29]
[1759417125562,3.08011687,223.92,223.86,4.0177]
[1759417126266,3.62,223.9,223.83,7.29]
[1759417126569,6.70011687,223.9,223.77,69.8143]
[1759417126763,7.09741687,223.89,223.8,4.0188]
[1759417126964,7.09741687,223.89,223.77,7.29]
[1759417127262,3.08011687,223.88,223.77,7.29]
[1759417127464,7.09761687,223.88,223.81,4.0185]
[1759417127664,4.0175,223.88,223.81,4.0185]
[1759417127860,7.09761687,223.88,223.81,4.0185]
[1759417128066,4.0175,223.88,223.81,4.0185]
[1759417128266,7.09761687,223.88,223.81,4.0185]
[1759417128469,4.0175,223.88,223.81,4.0185]
[1759417128765,7.09761687,223.88,223.81,4.0185]
[1759417128966,4.0175,223.88,223.81,4.0185]
[1759417129171,7.09761687,223.88,223.81,4.0185]
[1759417129371,4.0175,223.88,223.81,4.0185]
[1759417129573,7.09761687,223.88,223.81,4.0185]
[1759417129765,4.0175,223.88,223.79,4.019]
[1759417129961,3.62,223.87,223.77,7.29]
[1759417130170,62.5033,223.85,223.71,11.3103]
[1759417130469,3.62,223.83,223.71,7.29]
[1759417130673,3.08011687,223.82,223.71,7.29]
[1759417130875,3.08011687,223.81,223.71,7.29]
[1759417131076,3.08011687,223.8,223.71,7.29]
[1759417131275,3.08011687,223.82,223.71,7.29]
[1759417131475,3.08011687,223.81,223.71,7.29]
[1759417131678,7.09911687,223.8,223.73,4.02]
[1759417131969,3.62,223.83,223.71,7.29]
[1759417131970,3.08011687,223.82,223.71,7.29]
[1759417132174,3.08011687,223.81,223.71,7.29]
[1759417132380,3.08011687,223.82,223.71,7.29]
[1759417132570,3.08011687,223.81,223.71,7.29]
[1759417132775,3.08011687,223.82,223.74,4.0198]
[1759417132971,3.08011687,223.81,223.74,4.0198]
[1759417133175,3.08011687,223.82,223.74,4.0198]
[1759417133381,3.08011687,223.81,223.74,4.0198]
[1759417133588,3.08011687,223.82,223.74,4.0198]
[1759417133884,6.70011687,223.81,223.76,4.0195]
[1759417134187,3.62,223.81,223.76,4.0195]
[1759417134382,6.70011687,223.81,223.76,4.0195]
[1759417134589,3.62,223.81,223.76,4.0195]
[1759417134788,6.70011687,223.81,223.76,4.0195]
[1759417134990,3.62,223.81,223.76,4.0195]
[1759417135184,6.70011687,223.81,223.76,4.0195]
[1759417135384,3.08011687,223.82,223.76,4.0195]
[1759417135682,3.08011687,223.82,223.75,7.29]
[1759417135683,3.08011687,223.83,223.75,7.29]
[1759417135884,3.08011687,223.85,223.75,7.29]
[1759417136283,3.08011687,223.84,223.78,1.7553346]
[1759417136482,3.08011687,223.85,223.82,7.29]
[1759417136682,3.08011687,223.86,223.82,7.29]
[1759417136882,3.08011687,223.87,223.81,4.0186]
[1759417137082,4.83545147,223.86,223.79,4.019]
[1759417137387,3.08011687,223.85,223.76,9.0453346]
[1759417137588,3.08011687,223.86,223.79,7.29]
[1759417137783,3.08011687,223.88,223.79,7.29]
[1759417138087,3.08011687,223.87,223.79,7.29]
[1759417138288,3.08011687,223.86,223.8,1.7553346]
[1759417138489,3.08011687,223.88,223.79,7.29]
[1759417138689,3.08011687,223.87,223.82,7.29]
[1759417138885,3.08011687,223.88,223.76,7.29]
[1759417139086,1.7553346,223.83,223.76,7.29]
[1759417139294,4.0185,223.82,223.76,7.29]
[1759417140091,4.83545147,223.82,223.76,7.29]
[1759417140291,3.08011687,223.82,223.76,7.29]
[1759417140490,3.08011687,223.82,223.76,11.3094]
[1759417142395,6.70011687,223.83,223.76,11.3094]
[1759417142797,4.0185,223.82,223.73,4.0199]
[1759417142986,7.09861687,223.82,223.73,4.0199]
[1759417143187,4.0185,223.82,223.72,7.63]
[1759417143389,4.0189,223.8,223.72,11.6503]
[1759417143695,4.0189,223.8,223.72,7.63]
[1759417143893,7.09901687,223.8,223.72,7.63]
[1759417144592,7.09901687,223.8,223.73,4.0199]
[1759417144794,4.0189,223.8,223.73,4.0199]
[1759417146397,7.09901687,223.8,223.73,4.0199]
[1759417146595,4.0189,223.8,223.73,4.0199]
[1759417146799,6.71011687,223.81,223.74,4.0198]
[1759417146998,3.63,223.81,223.74,4.0198]
[1759417147300,6.71011687,223.81,223.74,4.0198]
[1759417147602,6.71011687,223.81,223.75,4.0196]
[1759417147799,3.63,223.81,223.75,4.0196]
[1759417148195,3.63,223.81,223.73,4.02]
[1759417148502,3.63,223.81,223.72,7.63]
[1759417149694,7.6488,223.81,223.73,4.0201]
[1759417150392,10.72891687,223.81,223.73,4.0201]
[1759417150592,3.08011687,223.8,223.73,4.0201]
[1759417150996,4.019,223.79,223.72,7.63]
[1759417152306,65.25477707,223.82,223.72,7.63]
[1759417152605,3.63,223.8,223.72,7.63]
[1759417153403,4.019,223.79,223.72,7.63]
[1759417153606,3.08011687,223.79,223.72,7.63]
[1759417153796,4.0191,223.79,223.73,4.02]
[1759417153999,7.09921687,223.79,223.72,7.63]
[1759417154704,3.08011687,223.79,223.72,7.63]
[1759417154900,116.80367707,223.8,223.68,7.63]
[1759417155106,2.74367707,223.77,223.68,7.63]
[1759417155302,4.0201,223.74,223.68,7.63]
[1759417155903,3.63,223.72,223.68,7.63]
[1759417156103,3.63,223.72,223.62,7.63]
[1759417156600,108.43,223.72,223.62,11.6519]
[1759417156804,5.81296128,223.71,223.62,7.63]
[1759417157009,3.63,223.7,223.62,7.63]
[1759417157404,4.0211,223.68,223.56,7.63]
[1759417157806,7.09038421,223.68,223.56,7.63]
[1759417158207,7.09038421,223.68,223.59,4.0225]
[1759417158406,4.0211,223.68,223.59,11.6525]
[1759417158714,4.0211,223.68,223.59,7.63]
[1759417159105,3.06539875,223.68,223.59,7.63]
[1759417159309,3.63,223.67,223.58,4.0228]
[1759417161716,3.63,223.67,223.6,4.0224]
[1759417163412,3.06539875,223.68,223.62,11.6521]
[1759417163612,127.55995457,223.69,223.62,11.6521]
[1759417163814,3.05676258,223.68,223.62,7.63]
[1759417164615,7.07786258,223.68,223.62,7.63]
[1759417166009,3.05676258,223.68,223.62,7.63]
[1759417167516,117.05676258,223.68,223.62,7.63]
[1759417167718,114.0,223.68,223.62,7.63]
[1759417168713,114.0,223.68,223.64,7.48]
[1759417168912,4.0203,223.72,223.61,7.48]
[1759417169111,113.98,223.71,223.61,7.48]
[1759417169307,3.05904796,223.7,223.61,7.48]
[1759417169720,3.05904796,223.7,223.64,4.0216]
[1759417170518,6.38367707,223.7,223.61,7.48]
[1759417170717,9.44272503,223.7,223.61,7.48]
[1759417171017,3.64,223.69,223.61,7.48]
[1759417171211,3.64,223.69,223.58,4.0227]
[1759417171412,3.64,223.69,223.49,62.6033]
[1759417171413,2.74367707,223.67,223.5,7.86]
[1759417171714,3.64,223.66,223.5,7.86]
[1759417171915,4.0221,223.63,223.55,4.0232]
[1759417172209,58.0821,223.63,223.55,4.0232]
[1759417172619,54.06,223.63,223.56,4.0231]
[1759417172805,54.06,223.63,223.54,7.86]
[1759417173417,3.05926341,223.62,223.54,7.86]
[1759417173811,54.06,223.63,223.54,7.86]
[1759417174215,54.06,223.63,223.56,4.0232]
[1759417176522,54.06,223.63,223.54,7.86]
[1759417176523,7.08130864,223.62,223.54,7.86]
[1759417177618,7.08130864,223.62,223.54,11.8834]
[1759417180513,7.08130864,223.62,223.55,4.0233]
[1759417180514,3.05910864,223.62,223.55,4.0233]
[1759417181319,3.05910864,223.62,223.54,7.86]
[1759417183624,3.05910864,223.62,223.56,4.0231]
[1759417184922,7.08130864,223.62,223.54,7.86]
[1759417185124,3.05910864,223.62,223.54,7.86]
[1759417185518,3.64,223.63,223.54,7.86]
[1759417186720,3.64,223.63,223.57,4.0229]
[1759417192934,3.64,223.63,223.58,7.86]
[1759417193136,7.08100864,223.64,223.57,4.0229]
[1759417193432,3.64,223.67,223.58,7.86]
[1759417193636,3.06436679,223.66,223.58,7.86]
[1759417194436,3.06436679,223.65,223.58,7.86]
[1759417194632,3.64,223.65,223.58,7.86]
[1759417194938,6.70436679,223.65,223.58,7.86]
[1759417195132,3.64,223.65,223.58,7.86]
[1759417195333,3.06436679,223.64,223.58,7.86]
[1759417195632,3.06436679,223.67,223.59,7.86]
[1759417196334,3.06436679,223.66,223.64,7.86]
[1759417196635,3.06436679,223.67,223.64,7.86]
[1759417196840,3.06436679,223.66,223.64,7.86]
[1759417197034,3.06436679,223.67,223.65,7.86]
[1759417197534,3.06436679,223.66,223.64,11.8817]
[1759417197739,6.70436679,223.67,223.63,7.86]
[1759417197938,3.06436679,223.66,223.62,4.0221]
[1759417198131,3.06436679,223.67,223.63,7.86]
[1759417198336,3.06436679,223.66,223.63,7.86]
[1759417198531,3.06436679,223.65,223.63,7.86]
[1759417198736,3.06436679,223.67,223.63,7.86]
[1759417198939,3.06436679,223.66,223.63,7.86]
[1759417199140,3.06436679,223.65,223.63,7.86]
[1759417199341,3.06436679,223.64,223.63,7.86]
[1759417199544,3.06436679,223.67,223.62,4.0221]
[1759417199839,3.06436679,223.66,223.64,7.86]
[1759417200040,3.06436679,223.65,223.64,7.86]
[1759417202044,325.28,223.77,223.64,7.86]
[1759417202045,3.08169826,223.69,223.64,8.3]
[1759417202245,3.63,223.75,223.64,8.3]
[1759417202246,4.84995276,223.74,223.68,1.75699464]
[1759417202445,7.6501,223.74,223.65,1.75699464]
[1759417202743,8.47995276,223.74,223.65,1.75699464]
[1759417202945,3.63,223.71,223.65,1.75699464]
[1759417203144,16.8499202,223.71,223.65,1.75699464]
[1759417203444,16.8499202,223.71,223.64,11.8816]
[1759417204039,16.8499202,223.71,223.64,7.86]
[1759417205147,18.60691484,223.71,223.49,62.6035]
[1759417205342,1.75699464,223.67,223.57,9.60699464]
[1759417205646,3.63,223.65,223.57,9.60699464]
[1759417205848,5.38699464,223.65,223.57,9.60699464]
[1759417206049,5.38699464,223.65,223.57,7.85]
[1759417206646,5.38699464,223.65,223.57,9.60699464]
[1759417206946,4.0214,223.67,223.59,1.75699464]
[1759417207149,118.98699464,223.66,223.57,1.75699464]
[1759417208042,4.0218,223.65,223.57,1.75699464]
[1759417208249,1.75699464,223.6,223.49,7.85]
[1759417208548,5.38699464,223.58,223.49,13.63149464]
[1759417208945,62.5604,223.65,223.49,13.63149464]
[1759417208946,3.63,223.65,223.53,1.75699464]
[1759417209150,7.6518,223.65,223.57,7.85]
[1759417209449,3.63,223.65,223.57,7.85]
[1759417209650,7.6516,223.65,223.57,7.85]
[1759417210044,3.63,223.65,223.57,7.85]
[1759417210252,4.022,223.63,223.57,7.85]
[1759417210444,4.022,223.63,223.53,4.0237]
[1759417210445,4.022,223.63,223.53,13.63069464]
[1759417210647,3.63,223.59,223.51,1.75699464]
[1759417210953,3.63,223.59,223.41,188.08919226]
[1759417210954,117.21,223.59,223.49,7.85]
[1759417211144,117.21,223.59,223.51,1.75699464]
[1759417211551,117.21,223.59,223.51,9.60699464]
[1759417211943,117.21,223.59,223.52,4.0239]
[1759417212551,117.21,223.59,223.51,9.60699464]
[1759417213351,4.0229,223.58,223.51,9.60699464]
[1759417213750,4.0229,223.58,223.51,7.85]
[1759417214252,3.1315145,223.57,223.51,7.85]
[1759417214449,117.21,223.59,223.51,7.85]
[1759417214654,3.13257945,223.58,223.51,11.8741]
[1759417214951,3.13257945,223.57,223.51,11.8741]
[1759417215151,44.46,223.61,223.56,7.85]
[1759417215352,3.13356559,223.6,223.56,7.85]
[1759417215655,3.13356559,223.59,223.56,7.85]
[1759417215850,44.46,223.61,223.56,7.85]
[1759417216054,3.13375598,223.6,223.56,7.85]
[1759417216253,3.13375598,223.59,223.56,7.85]
[1759417216454,48.09,223.61,223.56,7.85]
[1759417216655,3.13398305,223.6,223.56,7.85]
[1759417216849,3.13398305,223.59,223.56,7.85]
[1759417217050,3.63,223.61,223.56,7.85]
[1759417217350,3.63,223.61,223.46,62.612]
[1759417217351,1.75699464,223.62,223.52,1.75699464]
[1759417217554,1.75699464,223.59,223.51,7.85]
[1759417217858,6.7649385,223.58,223.51,7.85]
[1759417218061,3.1349385,223.57,223.51,7.85]
[1759417218250,3.63,223.58,223.51,7.85]
[1759417218446,3.13427821,223.57,223.48,1.75699464]
[1759417218648,3.13427821,223.56,223.48,1.75699464]
[1759417218853,4.0236,223.54,223.47,7.85]
[1759417219156,8.52103572,223.55,223.47,7.85]
[1759417219355,4.0248,223.48,223.39,7.85]
[1759417219554,3.63,223.45,223.35,7.51875118]
[1759417219854,7.6553,223.45,223.34,1.75699464]
[1759417220059,3.35290913,223.44,223.38,7.85]
[1759417220248,113.52,223.46,223.4,1.75699464]
[1759417220453,113.52,223.5,223.43,1.75699464]
[1759417220758,3.3514734,223.49,223.43,1.75699464]
[1759417220950,3.63,223.47,223.41,7.85]
[1759417221151,113.52,223.5,223.41,7.85]
[1759417221354,3.3514396,223.49,223.42,1.75699464]
[1759417221559,3.3514396,223.48,223.42,1.75699464]
[1759417221853,16.95549043,223.49,223.41,7.85]
[1759417222047,5.10743428,223.48,223.38,5.78329464]
[1759417222247,1.75699464,223.48,223.38,5.78329464]
[1759417223052,5.78169464,223.48,223.38,4.0263]
[1759417223248,3.34969494,223.47,223.38,4.0263]
[1759417223449,3.65,223.47,223.37,7.85]
[1759417224160,1.75699464,223.45,223.37,7.85]
[1759417224658,3.65,223.44,223.33,7.3]
[1759417224859,113.5,223.43,223.33,7.3]
[1759417225157,113.5,223.43,223.34,1.75699464]
[1759417225860,115.25699464,223.43,223.33,7.3]
[1759417226360,115.25699464,223.43,223.34,4.0272]
[1759417226757,4.0257,223.42,223.33,7.3]
[1759417227060,3.65,223.42,223.33,7.3]
[1759417228552,4.0261,223.41,223.33,7.3]
[1759417228861,3.65,223.42,223.33,7.3]
[1759417229057,4.0265,223.38,223.27,11.3284]
[1759417229256,4.0265,223.38,223.29,1.75699464]
[1759417229463,4.0265,223.38,223.28,9.05699464]
[1759417229659,4.0265,223.38,223.28,7.3]
[1759417229863,4.0268,223.36,223.28,9.05699464]
[1759417230056,3.65,223.35,223.27,5.78539464]
[1759417230357,3.65,223.32,223.22,4.0292]
[1759417230564,5.40699464,223.32,223.22,4.0292]
[1759417230959,5.40699464,223.32,223.21,7.3]
[1759417231365,4.0278,223.31,223.21,7.3]
[1759417231759,5.40699464,223.32,223.21,7.3]
[1759417231959,3.65,223.32,223.21,7.3]
[1759417232160,111.86,223.31,223.2,62.6844]
[1759417232365,111.86,223.31,223.26,9.29699464]
[1759417232620,1.75699464,223.35,223.26,9.29699464]
[1759417232621,1.75699464,223.36,223.26,1.75699464]
[1759417232855,68.52,223.35,223.26,1.75699464]
[1759417233014,68.52,223.35,223.28,1.75699464]
[1759417233768,117.16,223.36,223.28,1.75699464]
[1759417234660,117.16,223.36,223.29,1.75699464]
[1759417235171,4.027,223.35,223.28,7.54]
[1759417235668,117.16,223.36,223.28,7.54]
[1759417236261,4.0262,223.4,223.31,7.54]
[1759417236468,3.66,223.41,223.33,1.75699464]
[1759417236663,3.66,223.41,223.31,7.54]
[1759417236866,3.66,223.41,223.33,1.75699464]
[1759417237668,7.6861,223.41,223.33,1.75699464]
[1759417237866,3.66,223.41,223.33,1.75699464]
[1759417238069,1.75699464,223.38,223.31,7.54]
[1759417238265,3.66,223.35,223.24,11.5688]
[1759417238567,3.66,223.35,223.27,7.54]
[1759417239366,7.687,223.35,223.27,9.29699464]
[1759417239667,7.687,223.35,223.16,124.7359]
[1759417239668,1.75699464,223.34,223.19,7.54]
[1759417239872,1.75699464,223.34,223.24,1.75699464]
[1759417240075,1.75699464,223.34,223.23,1.75699464]
[1759417240371,4.0282,223.29,223.23,1.75699464]
[1759417241272,4.0282,223.29,223.2,4.0295]
[1759417241468,4.0282,223.29,223.23,1.75699464]
[1759417241865,4.0282,223.29,223.22,1.75699464]
[1759417242372,4.0282,223.29,223.2,4.0295]
[1759417242574,4.0277,223.31,223.22,5.78629464]
[1759417242772,4.0277,223.31,223.22,13.32629464]
[1759417243073,4.0277,223.31,223.24,1.75699464]
[1759417243267,117.4877,223.31,223.22,11.5693]
[1759417243468,117.4877,223.31,223.24,1.75699464]
[1759417243675,113.46,223.31,223.24,1.75699464]
[1759417243871,115.21699464,223.31,223.22,7.54]
[1759417244171,4.0288,223.26,223.18,1.75699464]
[1759417244574,3.66,223.27,223.18,1.75699464]
[1759417244764,4.0292,223.23,223.18,1.75699464]
[1759417244966,4.0292,223.23,223.18,9.29699464]
[1759417245374,7.6892,223.23,223.18,9.29699464]
[1759417245871,4.0288,223.25,223.18,9.29699464]
[1759417246073,3.66,223.27,223.18,9.29699464]
[1759417246377,3.66,223.27,223.18,7.54]
[1759417247069,117.1,223.27,223.18,7.54]
[1759417247673,4.0295,223.22,223.13,7.54]
[1759417248474,4.0297,223.2,223.13,7.54]
[1759417249176,3.66,223.24,223.13,7.54]
[1759417249873,16.87017236,223.24,223.13,7.54]
[1759417250270,113.44,223.23,223.13,7.54]
[1759417250466,4.0296,223.21,223.13,7.54]
[1759417252472,20.89927236,223.24,223.13,7.54]
[1759417252776,62.6482,223.34,223.13,7.54]
[1759417252777,62.6537,223.32,223.13,7.54]
[1759417252978,3.66,223.28,223.15,7.54]
[1759417253171,31.22,223.28,223.16,7.54]
[1759417253374,13.20257438,223.3,223.18,7.54]
[1759417253573,3.66,223.33,223.2,7.54]
[1759417253875,3.66,223.39,223.23,4.59508668]
[1759417254074,3.44510357,223.44,223.3,7.54]
[1759417254380,72.8,223.44,223.31,4.0276]
[1759417254677,3.66,223.41,223.25,7.54]
[1759417254874,3.44657996,223.4,223.26,4.0286]
[1759417255071,3.66,223.41,223.27,7.54]
[1759417255280,77.7,223.44,223.28,7.54]
[1759417255477,3.44837264,223.43,223.33,7.54]
[1759417255681,3.66,223.46,223.33,7.54]
[1759417255874,3.44859884,223.45,223.33,7.54]
[1759417256077,3.66,223.46,223.33,7.54]
[1759417256279,7.47380037,223.45,223.36,7.54]
[1759417256483,3.66,223.46,223.36,7.54]
[1759417256680,3.44966653,223.45,223.38,4.0264]
[1759417256976,326.02,223.51,223.39,7.54]
[1759417257372,3.44994484,223.5,223.43,7.54]
[1759417257572,3.45117929,223.49,223.43,7.54]
[1759417257780,3.45117929,223.48,223.38,4.0264]
[1759417257977,326.02,223.51,223.39,7.54]
[1759417258283,3.45118496,223.5,223.4,7.54]
[1759417258581,3.46495985,223.49,223.41,7.54]
[1759417258776,326.02,223.51,223.41,7.54]
[1759417258976,3.46486246,223.5,223.41,7.54]
[1759417259172,3.46486105,223.49,223.41,7.54]
[1759417259373,326.02,223.51,223.41,7.54]
[1759417259682,86.55550518,223.57,223.41,7.54]
[1759417259683,3.46547338,223.5,223.42,7.54]
[1759417259882,18.76,223.56,223.42,7.54]
[1759417260076,3.46564984,223.55,223.42,7.54]
[1759417260276,3.46564984,223.54,223.42,7.54]
[1759417260477,3.46564984,223.53,223.42,7.54]
[1759417260780,3.46564984,223.52,223.42,7.54]
[1759417260976,3.46564984,223.51,223.42,7.54]
[1759417261178,3.66,223.52,223.42,7.54]
[1759417261381,3.4654784,223.51,223.42,7.54]
[1759417261571,4.0246,223.49,223.38,7.44]
[1759417261976,4.0249,223.47,223.38,7.44]
[1759417262173,62.6122,223.46,223.38,7.44]
[1759417262375,62.6122,223.46,223.33,4.59508668]
[1759417262376,3.65,223.47,223.33,7.44]
[1759417262575,113.32,223.49,223.34,7.44]
[1759417262775,3.46737778,223.48,223.38,7.44]
[1759417262981,3.65,223.52,223.38,7.44]
[1759417263287,4.0243,223.5,223.38,7.44]
[1759417263581,3.46762637,223.49,223.39,7.44]
[1759417263784,3.46871442,223.48,223.39,7.44]
[1759417263981,179.5665,223.52,223.39,7.44]
[1759417264185,4.0248,223.48,223.39,7.44]
[1759417264587,4.0252,223.46,223.39,7.44]
[1759417265482,3.65,223.49,223.39,7.44]
[1759417265683,3.46845767,223.48,223.39,7.44]
[1759417265986,91.93,223.54,223.39,7.44]
[1759417266284,3.46874109,223.53,223.39,7.44]
[1759417266487,3.65,223.51,223.39,7.44]
[1759417266682,3.46874109,223.5,223.39,7.44]
[1759417266882,3.46874109,223.49,223.39,7.44]
[1759417267077,7.6741,223.51,223.39,11.4662]
[1759417267288,3.65,223.56,223.4,7.44]
[1759417267484,62.5898,223.54,223.4,7.44]
[1759417267783,7.11826437,223.53,223.4,7.44]
[1759417267986,3.46826437,223.52,223.4,7.44]
[1759417268283,3.46826437,223.51,223.4,7.44]
[1759417268489,3.46826437,223.5,223.4,7.44]
[1759417268690,62.5968,223.52,223.4,7.44]
[1759417268886,3.46947647,223.51,223.4,7.44]
[1759417269084,3.46947647,223.5,223.4,7.44]
[1759417269386,62.5968,223.52,223.4,7.44]
[1759417269587,7.493986,223.51,223.4,7.44]
[1759417269784,3.469686,223.5,223.4,7.44]
[1759417269983,4.025,223.47,223.4,7.44]
[1759417270186,101.29,223.48,223.35,7.44]
[1759417270386,66.263,223.46,223.35,7.44]
[1759417270580,62.6191,223.44,223.35,7.44]
[1759417270890,3.65,223.43,223.3,7.44]
[1759417271089,3.65,223.43,223.32,4.0276]
[1759417271291,3.65,223.43,223.3,7.44]
[1759417271689,3.65,223.43,223.33,4.0274]
[1759417271886,4.0254,223.45,223.34,7.44]
[1759417272288,60.7,223.47,223.38,7.44]
[1759417272589,120.9349,223.48,223.38,7.44]
[1759417272787,21.11522005,223.57,223.42,7.44]
[1759417272788,3.65,223.53,223.42,7.44]
[1759417272986,3.4707617,223.52,223.42,7.44]
[1759417273190,3.4703726,223.56,223.44,7.44]
[1759417273486,3.4703726,223.55,223.44,7.44]
[1759417273683,3.4703726,223.54,223.44,7.44]
[1759417274189,5.82745664,223.57,223.45,62.6153]
[1759417274387,3.46889943,223.56,223.46,7.44]
[1759417274588,74.55,223.62,223.47,62.6099]
[1759417274889,3.46853133,223.61,223.48,7.44]
[1759417275093,3.46853133,223.6,223.48,7.44]
[1759417275392,3.46853133,223.59,223.52,7.44]
[1759417275590,3.65,223.62,223.52,7.44]
[1759417275885,4.0226,223.6,223.52,7.44]
[1759417276091,3.65,223.62,223.52,7.44]
[1759417276092,3.46553391,223.59,223.52,7.44]
[1759417276291,3.46553391,223.61,223.52,7.44]
[1759417276493,3.46553391,223.6,223.52,7.44]
[1759417276891,3.46553391,223.59,223.46,7.44]
[1759417277090,7.11553391,223.58,223.46,7.44]
[1759417277693,3.46553391,223.57,223.46,7.44]
[1759417277894,66.2379,223.55,223.41,7.44]
[1759417278286,62.5937,223.53,223.41,7.44]
[1759417278494,66.2498,223.51,223.41,7.44]
[1759417278690,3.65,223.51,223.41,7.44]
[1759417279294,4.0247,223.48,223.41,7.44]
[1759417280296,4.0252,223.46,223.36,11.4667]
[1759417280593,3.65,223.49,223.36,7.44]
[1759417280594,62.6103,223.47,223.36,7.44]
[1759417281000,3.65,223.49,223.36,7.44]
[1759417281492,4.0253,223.45,223.36,7.44]
[1759417281691,62.6103,223.47,223.36,7.44]